bitfinex-derivatives/quotes_SOLF0:USTF0_20260127
["timestamp","ask_amount","ask_price","bid_price","bid_amount"]
[1769542345914,23.7586873,125.7,125.65,1.89274373]
[1769542348805,23.21054924,125.72,125.66,1.89274373]
[1769542349004,23.21054924,125.72,125.66,18.30737037]
[1769542349607,23.21054924,125.72,125.67,1.89274373]
[1769542353210,23.21054924,125.72,125.66,18.30737037]
[1769542356622,23.21054924,125.72,125.66,16.41462664]
[1769542362429,23.21054924,125.72,125.66,18.30799014]
[1769542364121,7.1691,125.71,125.66,18.30799014]
[1769542364526,7.1691,125.71,125.66,16.41462664]
[1769542364926,7.1697,125.7,125.66,16.41462664]
[1769542365127,23.21134924,125.7,125.64,16.41462664]
[1769542365527,23.21134924,125.7,125.64,18.30799014]
[1769542366529,23.21134924,125.7,125.65,18.30799014]
[1769542368524,23.21134924,125.7,125.65,16.41462664]
[1769542370034,7.1702,125.69,125.65,16.41462664]
[1769542371336,23.21124924,125.7,125.65,16.41462664]
[1769542371532,1.8933635,125.73,125.67,16.41462664]
[1769542371724,6.32220643,125.73,125.67,18.30799014]
[1769542372940,22.36385567,125.73,125.67,18.30799014]
[1769542373240,6.32220643,125.72,125.67,18.30799014]
[1769542373934,111.462,125.78,125.63,111.5855]
[1769542373935,7.1665,125.76,125.69,18.30799014]
[1769542374137,6.2164694,125.75,125.7,18.30799014]
[1769542374336,6.2164694,125.75,125.7,16.41462664]
[1769542374536,6.2164694,125.75,125.7,18.30799014]
[1769542377742,6.2164694,125.75,125.7,16.41462664]
[1769542378835,13.3831694,125.75,125.7,16.41462664]
[1769542379141,22.13260516,125.75,125.7,16.41462664]
[1769542379344,22.13260516,125.75,125.68,16.83851457]
[1769542381640,22.13260516,125.75,125.69,16.83851457]
[1769542382243,14.96590516,125.73,125.66,24.00971457]
[1769542382543,14.96590516,125.73,125.67,14.94515107]
[1769542383943,22.13430516,125.73,125.67,14.94515107]
[1769542384739,7.1684,125.72,125.67,14.94515107]
[1769542384940,16.85926866,125.72,125.65,14.94515107]
[1769542385945,7.1696,125.7,125.65,14.94515107]
[1769542386949,9.0629635,125.7,125.65,14.94515107]
[1769542389245,24.02886866,125.7,125.65,14.94515107]
[1769542390947,16.85926866,125.7,125.65,14.94515107]
[1769542391749,111.4939,125.74,125.63,14.94515107]
[1769542391750,16.85926866,125.68,125.63,14.94515107]
[1769542391946,16.85926866,125.68,125.61,14.94515107]
[1769542393043,16.85926866,125.68,125.63,22.11855107]
[1769542393249,1.8933635,125.68,125.63,22.11855107]
[1769542393754,1.8933635,125.7,125.64,14.94515107]
[1769542394053,1.8933635,125.7,125.64,16.83851457]
[1769542394547,6.17488591,125.71,125.65,16.83851457]
[1769542394947,6.17488591,125.71,125.65,24.01081457]
[1769542395348,6.17488591,125.71,125.66,14.94515107]
[1769542395547,21.14079107,125.71,125.66,14.94515107]
[1769542395855,14.96590516,125.71,125.66,14.94515107]
[1769542396354,16.85926866,125.7,125.64,7.1729]
[1769542396749,16.85926866,125.7,125.64,14.94515107]
[1769542397852,16.85926866,125.7,125.65,7.1723]
[1769542398859,16.85926866,125.7,125.64,22.11805107]
[1769542401462,24.02886866,125.7,125.64,22.11805107]
[1769542403062,16.85926866,125.7,125.64,22.11805107]
[1769542408866,16.85926866,125.7,125.64,14.94515107]
[1769542409575,14.96590516,125.7,125.64,14.94515107]
[1769542411570,14.96590516,125.7,125.64,16.83851457]
[1769542416585,20.84562836,125.72,125.65,14.07763015]
[1769542416791,20.84562836,125.72,125.66,15.97099365]
[1769542417983,20.84562836,125.72,125.66,23.14279365]
[1769542418183,20.84562836,125.72,125.66,15.97099365]
[1769542419598,20.84562836,125.72,125.66,15.97093161]
[1769542420295,13.67712836,125.71,125.66,1.89330146]
[1769542421797,13.67712836,125.71,125.65,14.07763015]
[1769542422988,20.84672836,125.7,125.65,14.07763015]
[1769542427498,20.84772836,125.69,125.63,15.97093161]
[1769542427999,7.1708,125.68,125.63,15.97093161]
[1769542430595,20.84842836,125.67,125.61,21.25223015]
[1769542430801,20.84842836,125.67,125.61,23.14553161]
[1769542434500,20.84842836,125.67,125.62,1.89330146]
[1769542435094,20.84842836,125.67,125.61,23.14553161]
[1769542437700,13.67712836,125.67,125.62,7.174]
[1769542437898,12.45509796,125.69,125.63,13.24556768]
[1769542438099,6.18578613,125.68,125.63,15.13886914]
[1769542438402,18.64088409,125.68,125.63,22.31216914]
[1769542438595,12.45509796,125.68,125.63,22.31216914]
[1769542438997,12.45509796,125.68,125.63,20.41886768]
[1769542439299,12.45509796,125.68,125.63,7.1733]
[1769542439897,12.45509796,125.68,125.63,20.41886768]
[1769542440796,12.45509796,125.7,125.64,22.31166914]
[1769542441003,6.18442215,125.69,125.64,22.31166914]
[1769542441807,18.63952011,125.69,125.64,22.31166914]
[1769542442015,12.45509796,125.69,125.64,20.41836768]
[1769542444305,12.45509796,125.71,125.66,20.41726768]
[1769542444513,12.45509796,125.69,125.64,15.13886914]
[1769542445806,12.45509796,125.69,125.64,22.31176914]
[1769542446111,12.45509796,125.71,125.65,13.24556768]
[1769542446411,18.64209253,125.7,125.65,13.24556768]
[1769542446710,12.45509796,125.7,125.65,13.24556768]
[1769542451916,21.51679942,125.72,125.65,13.24556768]
[1769542452216,6.18680968,125.71,125.66,15.13886914]
[1769542452610,18.64190764,125.71,125.66,15.13886914]
[1769542452813,6.18680968,125.7,125.66,15.13886914]
[1769542454117,12.45509796,125.71,125.66,15.13886914]
[1769542454513,12.45509796,125.74,125.68,1.89330146]
[1769542454712,12.45509796,125.76,125.7,1.89330146]
[1769542454909,18.64024808,125.75,125.7,1.89330146]
[1769542455118,6.18515012,125.74,125.7,1.89330146]
[1769542455418,12.45509796,125.75,125.7,1.89330146]
[1769542456012,6.18227146,125.74,125.7,1.89330146]
[1769542456522,19.62179796,125.75,125.7,1.89330146]
[1769542457423,6.17778753,125.74,125.7,1.89330146]
[1769542458119,19.62179796,125.75,125.7,1.89330146]
[1769542458726,19.62179796,125.75,125.7,15.13886914]
[1769542463631,7.1674,125.74,125.68,12.73705281]
[1769542463823,20.39446471,125.74,125.69,1.89330146]
[1769542465418,7.1678,125.73,125.69,1.89330146]
[1769542466027,19.15244062,125.72,125.67,1.89330146]
[1769542466625,19.15294062,125.71,125.67,1.89330146]
[1769542466829,19.15294062,125.71,125.66,11.97019241]
[1769542472136,7.1697,125.7,125.66,11.97019241]
[1769542473038,7.1701,125.69,125.65,1.89330146]
[1769542473331,19.15404062,125.69,125.64,11.97019241]
[1769542473529,11.98394062,125.69,125.64,13.86349387]
[1769542475336,11.98394062,125.69,125.64,1.89330146]
[1769542475931,7.1707,125.68,125.64,1.89330146]
[1769542476335,13.87724208,125.69,125.62,1.89330146]
[1769542476538,11.98394062,125.66,125.6,1.89330146]
[1769542477937,7.1724,125.65,125.6,1.89330146]
[1769542478649,7.1724,125.65,125.59,21.03869387]
[1769542479440,19.15574062,125.66,125.59,21.03869387]
[1769542479636,21.04904208,125.66,125.59,21.03869387]
[1769542480236,19.15574062,125.66,125.59,21.03869387]
[1769542480832,19.15574062,125.66,125.6,11.97019241]
[1769542481231,7.1712,125.67,125.61,13.86349387]
[1769542481634,7.1712,125.67,125.61,13.86482042]
[1769542482233,19.15514062,125.67,125.61,13.86482042]
[1769542484737,7.1706,125.69,125.64,11.97019241]
[1769542484938,19.15454062,125.69,125.64,11.97019241]
[1769542486147,21.04916863,125.69,125.64,11.97019241]
[1769542489545,19.15454062,125.69,125.64,11.97019241]
[1769542490247,19.15474062,125.68,125.62,13.86482042]
[1769542495751,19.15474062,125.68,125.62,21.03892042]
[1769542499251,19.15474062,125.68,125.63,11.85867834]
[1769542501050,7.1713,125.67,125.63,11.85867834]
[1769542501754,7.1707,125.68,125.65,11.85867834]
[1769542502251,7.1707,125.68,125.64,1.89462801]
[1769542503248,7.1707,125.68,125.63,11.85867834]
[1769542503448,7.1707,125.68,125.63,13.75330635]
[1769542506053,12.38815372,125.72,125.65,13.75330635]
[1769542506256,12.38815372,125.72,125.67,1.89462801]
[1769542506561,7.1694,125.71,125.67,1.89462801]
[1769542508061,12.38815372,125.72,125.67,1.89462801]
[1769542508256,12.38815372,125.72,125.66,11.85867834]
[1769542508460,12.38815372,125.72,125.67,1.89462801]
[1769542509963,19.55655372,125.72,125.67,1.89462801]
[1769542510863,12.38815372,125.72,125.67,1.89462801]
[1769542512853,12.38815372,125.72,125.67,13.75330635]
[1769542513054,12.38815372,125.74,125.67,13.75330635]
[1769542513258,6.16461114,125.73,125.67,13.75330635]
[1769542513670,18.55276486,125.73,125.67,13.75330635]
[1769542513967,226.78896421,125.75,125.7,13.75330635]
[1769542514567,12.38815372,125.75,125.7,13.75330635]
[1769542520765,12.38815372,125.77,125.7,13.75330635]
[1769542520971,12.38815372,125.77,125.72,13.75330635]
[1769542521961,19.55375372,125.77,125.72,13.75330635]
[1769542522367,12.38815372,125.77,125.72,13.75330635]
[1769542522673,12.38815372,125.79,125.74,13.75330635]
[1769542524471,12.38815372,125.79,125.74,11.85867834]
[1769542531179,12.08690342,125.78,125.72,13.96032122]
[1769542532272,19.25190342,125.78,125.72,13.96032122]
[1769542535977,12.08690342,125.77,125.72,13.96032122]
[1769542536177,19.25320342,125.76,125.71,13.96032122]
[1769542536368,19.25320342,125.76,125.71,12.06569321]
[1769542536574,12.08690342,125.79,125.68,12.06569321]
[1769542536777,13.98153143,125.77,125.7,12.06569321]
[1769542537075,13.98153143,125.76,125.7,12.06569321]
[1769542538176,1.89462801,125.74,125.68,12.06569321]
[1769542538781,1.89462801,125.72,125.68,12.06569321]
[1769542539280,13.98153143,125.73,125.68,12.06569321]
[1769542539480,1.89462801,125.74,125.68,12.06569321]
[1769542539682,12.08690342,125.75,125.68,12.06569321]
[1769542539878,13.98153143,125.75,125.68,13.96032122]
[1769542540279,13.98153143,125.73,125.68,12.06569321]
[1769542541585,13.98012125,125.73,125.68,12.06569321]
[1769542542682,1.89321783,125.74,125.69,12.06569321]
[1769542543487,13.98012125,125.74,125.69,12.06569321]
[1769542545687,1.89321783,125.73,125.69,12.06569321]
[1769542545879,1.89321783,125.73,125.68,7.1703]
[1769542548781,1.89321783,125.73,125.68,19.23599321]
[1769542548980,1.89321783,125.73,125.68,12.06569321]
[1769542551485,13.98012125,125.73,125.68,12.06569321]
[1769542551785,13.98012125,125.73,125.66,19.23699321]
[1769542551988,1.89321783,125.71,125.66,19.23699321]
[1769542553296,1.89321783,125.71,125.67,12.06569321]
[1769542556094,19.25490342,125.73,125.67,12.06569321]
[1769542556284,1.89321783,125.72,125.67,12.06569321]
[1769542558093,20.66416693,125.72,125.67,12.06569321]
[1769542559384,13.49556693,125.7,125.64,11.68531165]
[1769542560099,13.49556693,125.7,125.65,11.68531165]
[1769542561001,20.66406693,125.72,125.66,11.68531165]
[1769542562096,20.66406693,125.72,125.66,18.85711165]
[1769542563500,1.89321783,125.7,125.66,11.68531165]
[1769542564698,9.06171783,125.72,125.67,11.68531165]
[1769542564898,20.66406693,125.72,125.67,11.68531165]
[1769542565801,20.66326693,125.74,125.68,11.68531165]
[1769542566403,7.1678,125.73,125.68,11.68531165]
[1769542567089,20.66286693,125.74,125.68,11.68531165]
[1769542573606,18.7696491,125.74,125.68,13.57852948]
[1769542574909,18.7702491,125.73,125.68,13.57852948]
[1769542581408,11.6023491,125.72,125.66,20.75022948]
[1769542581915,11.6023491,125.72,125.67,11.68531165]
[1769542582717,18.7708491,125.72,125.67,11.68531165]
[1769542589420,6.13752833,125.71,125.67,11.68531165]
[1769542590310,18.7708491,125.72,125.67,11.68531165]
[1769542590510,6.13776377,125.71,125.67,11.68531165]
[1769542591818,23.74226806,125.71,125.65,20.08196494]
[1769542592122,1.89321783,125.73,125.65,12.90966494]
[1769542592123,16.57365173,125.7,125.65,12.90966494]
[1769542592320,10.43540429,125.7,125.65,12.90966494]
[1769542592921,17.60500429,125.7,125.65,12.90966494]
[1769542593523,1.89321783,125.73,125.66,11.01644711]
[1769542593524,10.43540429,125.72,125.66,11.01644711]
[1769542593725,6.14044302,125.71,125.66,11.01644711]
[1769542595014,6.14044302,125.71,125.66,18.18814711]
[1769542597424,6.14044302,125.71,125.67,11.01644711]
[1769542597623,10.43540429,125.72,125.68,11.01644711]
[1769542598232,10.43540429,125.74,125.69,11.01644711]
[1769542598528,6.13979826,125.73,125.69,12.90966494]
[1769542599634,10.43540429,125.76,125.7,11.01644711]
[1769542599925,10.43540429,125.76,125.72,1.89321783]
[1769542600629,214.35730424,125.77,125.72,12.90966494]
[1769542601132,10.43540429,125.8,125.73,12.90966494]
[1769542601326,6.12903552,125.79,125.74,12.90966494]
[1769542601524,6.12903552,125.79,125.74,12.90738186]
[1769542602324,1.89093475,125.82,125.76,11.01644711]
[1769542602527,1.89093475,125.82,125.77,12.90738186]
[1769542602528,6.12454568,125.82,125.77,12.90738186]
[1769542602832,16.55994997,125.82,125.77,12.90738186]
[1769542603027,17.59810429,125.82,125.77,12.90738186]
[1769542603431,10.43540429,125.82,125.77,12.90738186]
[1769542607430,10.43540429,125.81,125.75,11.01644711]
[1769542607631,10.43540429,125.81,125.75,12.90738186]
[1769542609032,17.59900429,125.81,125.75,12.90738186]
[1769542610132,1.89093475,125.83,125.78,1.89093475]
[1769542610133,17.59800429,125.83,125.78,1.89093475]
[1769542610827,17.59800429,125.83,125.78,12.90738186]
[1769542612535,17.59680429,125.85,125.79,1.89093475]
[1769542612833,10.43540429,125.84,125.79,1.89093475]
[1769542614235,10.43540429,125.84,125.79,12.90738186]
[1769542617833,10.43540429,125.84,125.8,1.89093475]
[1769542618938,18.25482807,125.83,125.77,10.20781769]
[1769542619137,11.09262807,125.83,125.78,12.09875244]
[1769542622536,11.09262807,125.83,125.78,10.20781769]
[1769542622731,7.1616,125.84,125.78,12.09875244]
[1769542622940,7.1609,125.86,125.79,12.09875244]
[1769542623137,7.1609,125.86,125.81,10.20781769]
[1769542623534,18.25252807,125.87,125.81,12.09875244]
[1769542623938,7.1599,125.87,125.81,12.09875244]
[1769542625643,7.1599,125.87,125.81,10.20781769]
[1769542625945,7.1599,125.87,125.81,12.09875244]
[1769542626447,18.21074402,125.86,125.81,10.20781769]
[1769542627046,11.05034402,125.84,125.79,10.20781769]
[1769542627637,12.92309844,125.82,125.77,10.20781769]
[1769542628142,12.92309844,125.82,125.75,622.77740226]
[1769542628143,20.08629844,125.82,125.75,334.83431769]
[1769542628341,12.92309844,125.82,125.75,327.66781769]
[1769542628542,1.89093475,125.81,125.75,327.66781769]
[1769542628936,12.90502964,125.8,125.73,10.20781769]
[1769542629146,111.4152,125.83,125.73,10.20781769]
[1769542629147,1.89093475,125.78,125.73,10.20781769]
[1769542629348,12.88716687,125.78,125.73,10.20781769]
[1769542629643,1.89093475,125.75,125.69,10.20781769]
[1769542629844,1.89093475,125.74,125.69,10.20781769]
[1769542630044,7.166,125.77,125.69,12.09875244]
[1769542630347,1.89093475,125.77,125.71,10.20781769]
[1769542631951,1.89093475,125.76,125.71,10.20781769]
[1769542632547,1.89093475,125.75,125.69,10.20781769]
[1769542633953,1.89093475,125.75,125.69,17.37781769]
[1769542636747,7.1648,125.79,125.71,10.20781769]
[1769542636938,1.89093475,125.77,125.71,10.20781769]
[1769542638151,1.89093475,125.77,125.71,17.37671769]
[1769542638448,1.89093475,125.77,125.72,10.20781769]
[1769542638751,1.89093475,125.78,125.72,10.20781769]
[1769542639051,1.89093475,125.78,125.72,17.37611769]
[1769542639655,1.89093475,125.77,125.72,10.20781769]
[1769542640547,1.89093475,125.76,125.7,17.37691769]
[1769542640849,1.89093475,125.75,125.7,17.37691769]
[1769542642150,1.89093475,125.74,125.7,17.37691769]
[1769542643654,1.89093475,125.75,125.7,17.37691769]
[1769542643854,1.89093475,125.75,125.7,10.20781769]
[1769542645349,12.98356282,125.77,125.7,10.20781769]
[1769542645744,10.40529287,125.75,125.65,121.77971946]
[1769542645946,1.89093475,125.74,125.66,12.10215421]
[1769542646256,1.89093475,125.74,125.67,10.21121946]
[1769542646456,12.29622762,125.75,125.69,10.21121946]
[1769542646651,1.89093475,125.75,125.69,10.21121946]
[1769542648052,1.89093475,125.75,125.7,10.21121946]
[1769542648557,1.89093475,125.74,125.7,10.21121946]
[1769542649549,1.89093475,125.74,125.67,1.89093475]
[1769542649550,1.89093475,125.73,125.68,10.21121946]
[1769542649755,12.29622762,125.73,125.68,10.21121946]
[1769542650857,1.89093475,125.72,125.66,7.1718]
[1769542651053,12.29622762,125.72,125.66,10.21121946]
[1769542651267,1.89093475,125.71,125.66,10.21121946]
[1769542651454,1.89093475,125.71,125.67,10.21121946]
[1769542651960,19.46462762,125.72,125.67,10.21121946]
[1769542652857,1.89093475,125.71,125.67,10.21121946]
[1769542654256,1.89093475,125.72,125.67,10.21121946]
[1769542656455,9.05933475,125.72,125.67,10.21121946]
[1769542656662,19.46462762,125.72,125.65,10.21121946]
[1769542658064,19.46462762,125.72,125.65,17.38341946]
[1769542658766,19.46462762,125.72,125.66,10.21121946]
[1769542658963,1.89093475,125.71,125.66,10.21121946]
[1769542659161,1.89093475,125.71,125.66,17.38301946]
[1769542659465,1.89093475,125.73,125.66,10.21121946]
[1769542660866,9.05883475,125.73,125.67,7.1712]
[1769542661062,1.89093475,125.72,125.67,17.38241946]
[1769542663570,1.89355012,125.72,125.67,17.38241946]
[1769542664573,12.29884299,125.74,125.67,17.38241946]
[1769542667070,12.29884299,125.76,125.69,10.21121946]
[1769542667874,10.40529287,125.76,125.7,12.10476958]
[1769542668474,12.29884299,125.76,125.7,10.21121946]
[1769542668675,12.29884299,125.76,125.68,12.10476958]
[1769542669178,12.29884299,125.76,125.68,19.27536958]
[1769542669375,1.89355012,125.75,125.69,10.21121946]
[1769542671073,19.46514299,125.76,125.69,10.21121946]
[1769542671469,19.46514299,125.76,125.69,12.10476958]
[1769542671670,10.40529287,125.75,125.69,12.10476958]
[1769542672074,10.40529287,125.74,125.69,1.89355012]
[1769542672381,10.40529287,125.74,125.67,19.27596958]
[1769542672771,10.40529287,125.74,125.68,10.21121946]
[1769542673379,19.46494299,125.76,125.69,12.10476958]
[1769542673581,6.19606954,125.75,125.69,12.10476958]
[1769542674385,6.19606954,125.75,125.7,10.25504224]
[1769542674583,17.05044662,125.77,125.71,12.14859236]
[1769542674883,6.19733707,125.76,125.71,12.14859236]
[1769542675080,9.05855012,125.78,125.71,12.14859236]
[1769542675276,6.19688118,125.77,125.71,12.14859236]
[1769542675676,16.0817278,125.77,125.71,12.14859236]
[1769542675875,17.05064662,125.77,125.71,12.14859236]
[1769542676673,7.1658,125.77,125.71,12.14859236]
[1769542676878,7.165,125.78,125.72,12.14859236]
[1769542677073,6.19726348,125.77,125.72,12.14859236]
[1769542678786,7.165,125.78,125.72,12.14859236]
[1769542678983,6.19665803,125.77,125.73,1.89355012]
[1769542680186,9.88484662,125.79,125.73,12.14859236]
[1769542680386,6.19616756,125.78,125.73,12.14859236]
[1769542680586,6.19616756,125.78,125.73,10.25504224]
[1769542681990,9.88484662,125.77,125.71,17.42394224]
[1769542682179,9.88484662,125.77,125.72,1.89355012]
[1769542682385,9.88484662,125.77,125.72,12.14859236]
[1769542682892,7.1652,125.78,125.72,12.14859236]
[1769542686894,17.04924662,125.79,125.72,12.14859236]
[1769542688094,7.1651,125.78,125.72,12.14859236]
[1769542690193,7.1656,125.77,125.72,12.14859236]
[1769542691895,17.05114662,125.76,125.7,12.14859236]
[1769542692092,9.88484662,125.76,125.7,12.14859236]
[1769542692488,9.88484662,125.75,125.68,12.14859236]
[1769542692698,11.77839674,125.74,125.68,10.25504224]
[1769542693796,9.88484662,125.73,125.66,227.20859236]
[1769542693992,9.88484662,125.73,125.67,10.25504224]
[1769542694900,7.1685,125.72,125.67,10.25504224]
[1769542700005,7.169,125.71,125.67,10.25504224]
[1769542701007,1.89355012,125.72,125.67,10.25504224]
[1769542701203,1.89355012,125.71,125.67,10.25504224]
[1769542707308,11.77839674,125.73,125.68,9.8488101]
[1769542709610,9.88484662,125.73,125.68,9.8488101]
[1769542709912,9.90496945,125.72,125.66,11.74236022]
[1769542711918,17.07336945,125.72,125.66,11.74236022]
[1769542716726,17.07336945,125.72,125.67,9.8488101]
[1769542716916,9.90496945,125.76,125.7,11.74236022]
[1769542717813,9.90496945,125.76,125.71,1.89355012]
[1769542718219,9.90496945,125.76,125.7,11.74236022]
[1769542720324,17.07106945,125.76,125.7,11.74236022]
[1769542720634,9.90496945,125.75,125.7,1.89355012]
[1769542723136,9.90496945,125.74,125.68,18.91296022]
[1769542723330,9.90496945,125.74,125.68,9.06415012]
[1769542723723,9.90496945,125.77,125.69,9.8488101]
[1769542723927,6.14512194,125.76,125.71,9.8488101]
[1769542724125,9.90496945,125.76,125.68,1.89355012]
[1769542724333,9.90496945,125.74,125.68,1.89355012]
[1769542724534,9.90496945,125.74,125.68,9.06365012]
[1769542724833,9.90496945,125.74,125.68,1.89355012]
[1769542725538,9.90496945,125.74,125.68,1.89300048]
[1769542725733,9.90496945,125.74,125.68,11.74181058]
[1769542727930,11.79796993,125.76,125.7,1.89300048]
[1769542728632,9.90496945,125.76,125.71,1.89300048]
[1769542731545,9.90496945,125.76,125.7,11.74181058]
[1769542732043,17.07126945,125.76,125.7,11.74181058]
[1769542732244,6.15178715,125.75,125.7,11.74181058]
[1769542732436,17.07126945,125.76,125.7,11.74181058]
[1769542733639,9.90496945,125.76,125.71,1.89300048]
[1769542733841,9.90496945,125.76,125.71,11.74181058]
[1769542734043,9.90496945,125.76,125.7,1.89300048]
[1769542734443,15.96170422,125.75,125.7,1.89300048]
[1769542734641,9.80751274,125.75,125.7,1.89300048]
[1769542734944,9.80751274,125.75,125.7,11.77752553]
[1769542735137,11.70051322,125.78,125.7,11.77752553]
[1769542735338,15.96316819,125.77,125.7,11.77752553]
[1769542735538,6.15565545,125.76,125.7,11.77752553]
[1769542735839,13.32215545,125.76,125.7,11.77752553]
[1769542736040,7.1665,125.76,125.7,11.77752553]
[1769542736341,6.15723256,125.75,125.7,11.77752553]
[1769542736946,6.15723256,125.75,125.71,9.88452505]
[1769542737542,7.1665,125.76,125.71,9.88452505]
[1769542737942,16.97301274,125.78,125.72,11.77752553]
[1769542738249,9.80751274,125.82,125.76,1.89300048]
[1769542738446,7.1638,125.8,125.76,1.89300048]
[1769542738649,16.97131274,125.8,125.76,1.89300048]
[1769542738851,16.97131274,125.8,125.75,11.77752553]
[1769542740948,9.80751274,125.8,125.75,11.77752553]
[1769542742256,9.80751274,125.82,125.77,1.89300048]
[1769542742651,9.80751274,125.82,125.77,11.77752553]
[1769542742957,1.89300048,125.84,125.77,11.77752553]
[1769542743155,9.80751274,125.84,125.77,11.77752553]
[1769542744056,16.96961274,125.83,125.77,11.77752553]
[1769542744656,16.97021274,125.82,125.77,11.77752553]
[1769542748159,16.97021274,125.82,125.77,1.89300048]
[1769542748658,7.1632,125.81,125.77,1.89300048]
[1769542749654,16.97071274,125.81,125.77,1.89300048]
[1769542750062,16.97071274,125.81,125.75,11.77752553]
[1769542750364,16.97151274,125.8,125.75,11.77752553]
[1769542751255,16.97151274,125.8,125.75,1.89300048]
[1769542751760,7.1644,125.79,125.75,1.89300048]
[1769542752657,121.20811274,125.85,125.77,11.77752553]
[1769542752956,9.80751274,125.85,125.79,11.77752553]
[1769542753958,7.1616,125.84,125.79,11.77752553]
[1769542754559,16.96911274,125.84,125.79,11.77752553]
[1769542756567,16.96911274,125.84,125.79,9.88452505]
[1769542757067,9.80751274,125.84,125.79,9.88452505]
[1769542757266,9.80751274,125.84,125.77,1.89300048]
[1769542757471,329.8046,125.89,125.77,11.77752553]
[1769542757472,11.70051322,125.83,125.77,11.77752553]
[1769542757963,11.70051322,125.83,125.77,9.88452505]
[1769542758157,9.80751274,125.83,125.77,9.88452505]
[1769542759466,9.80751274,125.83,125.76,1.89300048]
[1769542759764,11.70051322,125.83,125.76,1.89300048]
[1769542759965,11.70051322,125.83,125.76,11.77752553]
[1769542760766,11.70051322,125.85,125.77,11.77752553]
[1769542761063,11.70051322,125.85,125.76,7.1659]
[1769542761064,11.70051322,125.85,125.78,11.77752553]
[1769542761257,11.70051322,125.85,125.78,9.88452505]
[1769542761866,9.80751274,125.83,125.76,18.94342553]
[1769542762260,9.80751274,125.83,125.77,11.77752553]
[1769542763065,9.80751274,125.83,125.77,9.88452505]
[1769542766867,8.60112193,125.85,125.78,10.33346747]
[1769542767258,8.60112193,125.85,125.78,17.49836747]
[1769542767865,8.60112193,125.85,125.79,8.44046699]
[1769542769678,1.89300048,125.86,125.8,8.44046699]
[1769542769869,10.49412241,125.86,125.8,8.44046699]
[1769542770469,8.60112193,125.85,125.8,8.44046699]
[1769542770673,8.60112193,125.85,125.78,10.33346747]
[1769542771869,15.76222193,125.85,125.78,9.05780048]
[1769542772076,15.76222193,125.85,125.79,8.44046699]
[1769542772873,1.89300048,125.86,125.8,8.44046699]
[1769542773274,17.65472241,125.86,125.8,8.44046699]
[1769542773474,8.60112193,125.85,125.8,8.44046699]
[1769542775269,8.60112193,125.83,125.76,1.89300048]
[1769542775474,8.60112193,125.83,125.77,8.44046699]
[1769542775977,17.65472241,125.86,125.78,10.33346747]
[1769542776872,17.65472241,125.86,125.79,15.60476699]
[1769542777380,15.76222193,125.85,125.79,8.44046699]
[1769542777680,10.49412241,125.86,125.79,8.44046699]
[1769542778880,17.65502241,125.86,125.79,15.60466699]
[1769542779082,17.65502241,125.86,125.8,8.44046699]
[1769542779579,8.60112193,125.85,125.8,8.44046699]
[1769542782891,15.76212193,125.85,125.8,8.44046699]
[1769542785589,17.65184095,125.85,125.8,8.44046699]
[1769542786990,10.49084095,125.85,125.8,8.44046699]
[1769542787889,8.60112193,125.89,125.81,8.44046699]
[1769542788188,7.97051638,125.88,125.81,8.44046699]
[1769542788378,16.57163831,125.88,125.81,8.44046699]
[1769542788580,6.08079736,125.87,125.81,8.44046699]
[1769542789082,7.1604,125.87,125.81,8.44046699]
[1769542789277,10.49084095,125.88,125.81,8.44046699]
[1769542790689,10.49084095,125.9,125.83,8.44046699]
[1769542790990,16.569601,125.89,125.83,8.44046699]
[1769542791192,8.60112193,125.89,125.83,8.44046699]
[1769542791392,17.64954095,125.89,125.83,8.44046699]
[1769542791694,1.88971902,125.88,125.83,8.44046699]
[1769542792091,10.49084095,125.88,125.83,8.44046699]
[1769542793594,17.65014095,125.88,125.83,8.44046699]
[1769542797194,7.78478573,125.86,125.81,7.7297082]
[1769542800294,7.1599,125.87,125.81,14.8929082]
[1769542800592,7.1599,125.87,125.82,7.7297082]
[1769542800990,9.67450475,125.88,125.82,7.7297082]
[1769542802589,7.78478573,125.85,125.79,1.88971902]
[1769542802794,1.88971902,125.84,125.78,7.7297082]
[1769542803690,1.88971902,125.84,125.79,7.1644]
[1769542804292,9.67450475,125.84,125.78,7.7297082]
[1769542805601,9.67450475,125.84,125.78,14.8944082]
[1769542806808,9.67450475,125.84,125.79,7.1643]
[1769542807907,9.67450475,125.84,125.79,14.8940082]
[1769542810205,9.67450475,125.84,125.76,113.36041902]
[1769542810206,1.88971902,125.84,125.8,7.1636]
[1769542810510,1.88971902,125.88,125.8,9.61942722]
[1769542810709,13.84296148,125.89,125.83,7.1616]
[1769542810910,7.94789477,125.88,125.83,7.1616]
[1769542812409,15.7326805,125.88,125.83,7.1616]
[1769542812706,9.67450475,125.88,125.83,7.1616]
[1769542814917,9.67450475,125.88,125.82,7.7297082]
[1769542815504,9.67450475,125.87,125.81,7.1628]
[1769542815710,1.88971902,125.86,125.81,7.1628]
[1769542816414,1.88971902,125.85,125.8,7.7297082]
[1769542816915,9.67450475,125.86,125.8,7.7297082]
[1769542817805,7.78478573,125.86,125.8,9.61942722]